bitfinex-derivatives/quotes_SOLF0:USTF0_20220104
["timestamp","ask_amount","ask_price","bid_price","bid_amount"]
[1641275997250,12.65789718,167.41,167.38,2.69688931]
[1641275997451,12.65789718,167.41,167.4,3.0]
[1641275997649,97.26611284,167.45,167.4,3.0]
[1641275997650,33.77601284,167.45,167.4,3.0]
[1641275997849,33.77601284,167.45,167.43,3.0]
[1641275998050,33.77601284,167.45,167.44,3.0]
[1641275998249,42.59601284,167.5,167.43,9.111]
[1641275998651,33.77601284,167.5,167.44,0.67506551]
[1641275998851,33.77601284,167.5,167.44,28.33985551]
[1641275999051,3.3742945,167.49,167.44,28.33985551]
[1641275999452,3.3742945,167.49,167.45,0.67506551]
[1641275999853,3.3742945,167.5,167.45,0.67506551]
[1641276001558,6.3742945,167.5,167.45,0.67506551]
[1641276001757,33.77601284,167.49,167.37,3.0]
[1641276001956,36.77601284,167.49,167.37,3.0]
[1641276002262,33.77601284,167.48,167.37,3.0]
[1641276002458,33.77601284,167.48,167.33,5.9705057]
[1641276002661,33.77601284,167.48,167.36,69.8128]
[1641276002858,27.66479,167.45,167.36,97.47759]
[1641276003059,32.28479,167.45,167.36,36.66479]
[1641276003557,3.37523409,167.44,167.36,36.66479]
[1641276003957,3.37523409,167.44,167.36,33.66479]
[1641276004158,3.37523409,167.44,167.36,36.66479]
[1641276004558,3.37523409,167.44,167.39,3.0]
[1641276004759,3.37523409,167.44,167.4,3.0]
[1641276004957,3.37523409,167.44,167.39,5.323]
[1641276004958,3.37523409,167.44,167.42,27.66479]
[1641276005158,33.77601284,167.49,167.42,27.66479]
[1641276005560,3.37437296,167.48,167.42,27.66479]
[1641276006160,3.37437296,167.48,167.45,3.0]
[1641276006359,3.37437296,167.48,167.45,5.776]
[1641276006559,3.37437296,167.51,167.45,5.776]
[1641276006962,3.37437296,167.51,167.46,27.66479]
[1641276007561,3.37437296,167.51,167.46,30.66479]
[1641276007963,3.37437296,167.52,167.46,27.66479]
[1641276008261,3.37437296,167.52,167.46,30.66479]
[1641276008463,3.37437296,167.52,167.46,27.66479]
[1641276008664,3.37437296,167.52,167.49,3.0]
[1641276008863,3.37437296,167.52,167.51,27.66479]
[1641276009266,3.37437296,167.54,167.51,27.66479]
[1641276009466,3.37437296,167.54,167.52,3.0]
[1641276009663,3.37437296,167.56,167.52,3.0]
[1641276009864,3.37437296,167.56,167.55,3.0]
[1641276010063,3.37437296,167.56,167.55,4.359]
[1641276010264,3.37437296,167.56,167.55,7.359]
[1641276010664,3.37437296,167.56,167.55,4.359]
[1641276010865,3.37437296,167.56,167.55,35.02379]
[1641276011064,3.37437296,167.59,167.55,35.02379]
[1641276011266,3.37437296,167.59,167.56,3.0]
[1641276011464,3.37437296,167.59,167.55,27.66479]
[1641276011663,3.37437296,167.59,167.51,27.66479]
[1641276011866,7.78437296,167.6,167.51,27.66479]
[1641276012166,7.78437296,167.6,167.51,30.66479]
[1641276012365,3.37437296,167.59,167.51,30.66479]
[1641276012765,3.37437296,167.59,167.51,27.66479]
[1641276013167,3.37437296,167.6,167.51,27.66479]
[1641276013765,3.37437296,167.6,167.51,30.66479]
[1641276014767,3.37437296,167.6,167.52,3.0]
[1641276014966,3.37437296,167.6,167.51,30.66479]
[1641276015665,3.37437296,167.6,167.53,4.21562493]
[1641276015869,6.37437296,167.6,167.53,4.21562493]
[1641276016168,3.37437296,167.6,167.53,4.21562493]
[1641276016766,3.37437296,167.59,167.53,4.21562493]
[1641276017168,3.37437296,167.6,167.54,0.67464786]
[1641276017667,9.73406606,167.6,167.54,4.89027279]
[1641276018068,9.73406606,167.6,167.55,0.67464786]
[1641276018268,3.37437296,167.59,167.55,6.48064786]
[1641276018669,3.37437296,167.59,167.56,0.67464786]
[1641276019970,3.37437296,167.59,167.54,0.67464786]
[1641276021169,3.37437296,167.59,167.54,4.89027279]
[1641276021669,3.37437296,167.59,167.55,0.67464786]
[1641276022468,3.0,167.58,167.55,0.67464786]
[1641276022671,5.853,167.58,167.53,4.21562493]
[1641276023070,33.51779,167.58,167.53,4.21562493]
[1641276023672,33.51779,167.58,167.51,4.21562493]
[1641276023871,3.37361887,167.57,167.54,0.67472377]
[1641276024071,3.37361887,167.57,167.51,4.21562493]
[1641276024375,3.0,167.56,167.51,4.21562493]
[1641276024573,4.0,167.56,167.45,27.66479]
[1641276024773,3.0,167.54,167.43,33.77210112]
[1641276024975,3.0,167.5,167.43,33.77210112]
[1641276025176,27.66479,167.47,167.43,33.77210112]
[1641276025374,27.66479,167.47,167.38,61.43689112]
[1641276025774,27.66479,167.47,167.44,0.67498284]
[1641276026176,3.37514695,167.46,167.39,0.67498284]
[1641276026374,9.95614695,167.46,167.39,0.67498284]
[1641276026973,27.66479,167.44,167.39,0.67498284]
[1641276027173,27.66479,167.44,167.39,11.07671117]
[1641276027876,27.66479,167.44,167.4,0.67498284]
[1641276028374,27.66479,167.44,167.39,0.67498284]
[1641276029075,12.65723371,167.46,167.39,0.67498284]
[1641276029576,16.03287409,167.45,167.39,0.67498284]
[1641276029976,3.37564038,167.44,167.38,0.67498284]
[1641276030482,12.65723371,167.45,167.38,13.33221655]
[1641276030978,12.65723371,167.46,167.39,0.67498284]
[1641276031377,3.37551432,167.45,167.39,0.67498284]
[1641276031779,16.03274803,167.45,167.39,0.67498284]
[1641276032580,3.37551432,167.44,167.39,0.67498284]
[1641276032982,3.0,167.43,167.38,0.67498284]
[1641276033183,30.66479,167.43,167.38,0.67498284]
[1641276033380,3.37551432,167.42,167.38,0.67498284]
[1641276035082,3.37551432,167.42,167.37,0.67498284]
[1641276036484,3.37551432,167.42,167.38,6.0]
[1641276037184,27.66479,167.43,167.38,6.0]
[1641276037386,27.66479,167.43,167.39,0.67498284]
[1641276037890,3.37587454,167.42,167.39,0.67498284]
[1641276038294,4.74969967,167.42,167.4,2.84581576]
[1641276038892,1.37382513,167.42,167.41,0.67498284]
[1641276039092,40.32202371,167.43,167.41,0.67498284]
[1641276039392,3.37595192,167.42,167.41,0.67498284]
[1641276039791,6.37595192,167.42,167.41,8.284e-05]
[1641276039992,6.37595192,167.42,167.39,8.284e-05]
[1641276040194,12.06695192,167.42,167.39,8.284e-05]
[1641276040392,3.0,167.4,167.39,8.284e-05]
[1641276040592,3.0,167.4,167.35,12.65723371]
[1641276040795,3.0,167.38,167.31,33.77210112]
[1641276040997,3.0,167.37,167.31,33.77210112]
[1641276041293,3.0,167.34,167.27,33.77210112]
[1641276041498,3.0,167.33,167.27,33.77210112]
[1641276041694,3.0,167.33,167.28,0.67544656]
[1641276042095,3.0,167.32,167.28,0.67544656]
[1641276042397,3.0,167.31,167.28,0.67544656]
[1641276042695,3.0,167.31,167.29,2.73180385]
[1641276043097,3.0,167.31,167.3,0.67544656]
[1641276043297,30.66479,167.31,167.3,0.67544656]
[1641276043497,30.66479,167.31,167.22,33.77210112]
[1641276043698,3.0,167.28,167.22,33.77210112]
[1641276044100,3.0,167.27,167.22,33.77210112]
[1641276044300,9.97960953,167.27,167.19,14.52644648]
[1641276044505,4.0,167.24,167.19,14.52644648]
[1641276044699,3.0,167.21,167.2,48.30327489]
[1641276044899,3.0,167.21,167.2,48.97910162]
[1641276045101,3.0,167.21,167.2,40.58452352]
[1641276045402,30.66479,167.21,167.2,40.58452352]
[1641276045601,34.66479,167.21,167.2,15.20227321]
[1641276045802,34.66479,167.21,167.2,0.67582673]
[1641276046000,31.66479,167.21,167.2,0.67582673]
[1641276046199,34.66479,167.21,167.2,0.67582673]
[1641276046400,34.66479,167.21,167.12,0.67582673]
[1641276046600,3.0,167.18,167.12,0.67582673]
[1641276046801,9.574,167.18,167.1,0.67582673]
[1641276047303,27.66479,167.16,167.1,0.67582673]
[1641276047502,6.574,167.18,167.1,0.67582673]
[1641276047702,6.574,167.18,167.1,3.0]
[1641276047902,65.3115,167.21,167.14,3.0]
[1641276048102,65.3115,167.21,167.14,4.559]
[1641276048706,65.3115,167.21,167.15,0.67582673]
[1641276049504,65.3115,167.21,167.11,35.66479]
[1641276049505,65.3115,167.21,167.12,0.67582673]
[1641276050408,72.3115,167.21,167.12,0.67582673]
[1641276050605,3.0,167.19,167.12,0.67582673]
[1641276050806,8.037,167.19,167.12,0.67582673]
[1641276051405,27.66479,167.18,167.09,0.67582673]
[1641276054011,3.0,167.16,167.09,0.67582673]
[1641276054211,27.66479,167.18,167.09,0.67582673]
[1641276056915,27.66479,167.18,167.09,3.67582673]
[1641276057124,27.66479,167.18,167.09,0.67582673]
[1641276057517,27.66479,167.18,167.1,0.67582673]
[1641276057917,27.66479,167.18,167.09,0.67582673]
[1641276058218,3.38018381,167.17,167.09,0.67582673]
[1641276060623,3.38018381,167.17,167.09,3.67582673]
[1641276061028,27.66479,167.18,167.1,0.67582673]
[1641276061625,8.11079509,167.17,167.1,0.67582673]
[1641276061825,14.52579509,167.17,167.1,0.67582673]
[1641276062027,17.90599589,167.17,167.09,9.46532094]
[1641276062429,14.52579509,167.17,167.1,0.67582673]
[1641276062829,14.52579509,167.17,167.09,0.67582673]
[1641276063931,14.52579509,167.17,167.09,9.46533629]
[1641276064532,3.38032726,167.16,167.1,0.67582673]
[1641276065531,3.38032726,167.16,167.09,0.67582673]
[1641276065934,13.81079509,167.17,167.09,0.67582673]
[1641276066633,5.7,167.17,167.09,9.46531175]
[1641276067034,5.7,167.17,167.1,0.67582673]
[1641276067436,27.66479,167.18,167.1,0.67582673]
[1641276068140,3.38016094,167.17,167.1,0.67582673]
[1641276068940,3.38016094,167.17,167.12,50.14695761]
[1641276069337,27.66479,167.18,167.13,0.67582673]
[1641276069537,27.66479,167.18,167.13,50.82278434]
[1641276069937,27.66479,167.18,167.14,0.67582673]
[1641276070338,3.38004896,167.17,167.14,0.67582673]
[1641276070739,27.66479,167.18,167.14,0.67582673]
[1641276071546,3.38029238,167.17,167.14,0.67582673]
[1641276071744,9.22929238,167.17,167.14,0.67582673]
[1641276072246,9.22929238,167.17,167.12,50.14695761]
[1641276072247,12.22929238,167.17,167.13,0.67582673]
[1641276072447,3.38029238,167.16,167.13,0.67582673]
[1641276073645,3.38029238,167.16,167.12,0.67582673]
[1641276074945,3.0,167.13,167.12,0.67582673]
[1641276075146,8.748,167.13,167.1,50.14695761]
[1641276075347,3.0,167.11,167.1,50.14695761]
[1641276075550,34.66479,167.11,167.1,50.14695761]
[1641276075747,34.66479,167.11,167.09,5.871e-05]
[1641276075946,3.0,167.1,167.09,5.871e-05]
[1641276076149,3.0,167.1,167.01,44.80792108]
[1641276076549,3.38207117,167.09,167.02,0.67641423]
[1641276076748,9.87207117,167.09,167.02,0.67641423]
[1641276077351,16.0565268,167.08,167.02,0.67641423]
[1641276077549,27.66479,167.07,167.02,0.67641423]
[1641276078049,30.66479,167.07,167.02,13.35878052]
[1641276078248,3.0,167.06,167.02,13.35878052]
[1641276078648,3.0,167.06,167.03,0.67641423]
[1641276079148,105.65474563,167.07,167.03,0.67641423]
[1641276079351,77.98995563,167.07,167.03,0.67641423]
[1641276079750,77.98995563,167.07,167.0,28.34120423]
[1641276079948,77.98995563,167.07,167.04,0.67641423]
[1641276080351,77.98995563,167.07,167.01,0.67641423]
[1641276080649,12.67445563,167.09,167.01,16.35878052]
[1641276080849,12.67445563,167.09,167.05,3.0]
[1641276081149,12.67445563,167.09,167.06,0.67641423]
[1641276081349,12.67445563,167.1,167.06,0.67641423]
[1641276082451,12.67445563,167.12,167.05,12.68236629]
[1641276082649,5.074,167.1,167.05,12.68236629]
[1641276083051,16.05652824,167.09,167.06,0.67641423]
[1641276083453,12.67445563,167.09,167.03,0.67641423]
[1641276084152,12.67445563,167.09,167.04,1.65945763]
[1641276084352,17.10245563,167.1,167.04,1.65945763]
[1641276084551,17.10245563,167.1,167.05,0.67641423]
[1641276084955,2.56768075,167.09,167.06,5.88668185]
[1641276085351,2.56768075,167.09,167.07,0.67641423]
[1641276092161,15.24213638,167.09,167.07,0.67641423]
[1641276092560,15.24213638,167.09,167.06,0.67641423]
[1641276092761,4.428,167.1,167.06,0.67641423]
[1641276092961,60.8774,167.13,167.06,0.67641423]
[1641276093361,60.8774,167.13,167.04,3.67641423]
[1641276093562,2.55274647,167.12,167.04,35.56842845]
[1641276093862,2.55274647,167.12,167.05,0.67641423]
[1641276095063,2.55274647,167.12,167.05,3.67641423]
[1641276095463,2.55274647,167.12,167.06,0.67641423]
[1641276096264,2.55274647,167.12,167.05,0.67641423]
[1641276096466,8.60574647,167.12,167.05,0.67641423]
[1641276097564,6.053,167.12,167.05,0.67641423]
[1641276098165,12.67445563,167.06,167.05,0.67641423]
[1641276098765,12.67445563,167.06,167.05,3.67641423]
[1641276098967,12.67445563,167.06,167.05,0.67641423]
[1641276099366,33.80180847,167.1,167.05,3.67641423]
[1641276099567,33.80180847,167.1,167.07,3.0]
[1641276099769,12.69870847,167.1,167.09,3.0]
[1641276099968,12.23013416,167.13,167.07,3.0]
[1641276100170,12.23013416,167.13,167.09,0.67641423]
[1641276100567,12.23013416,167.13,167.07,0.67641423]
[1641276101169,2.56702055,167.12,167.09,4.22722422]
[1641276101369,7.22102055,167.12,167.09,4.22722422]
[1641276101768,7.22102055,167.12,167.1,0.67641423]
[1641276101969,2.56702055,167.11,167.1,0.67641423]
[1641276102669,7.28002055,167.11,167.1,0.67641423]
[1641276102869,7.28002055,167.11,167.06,0.67641423]
[1641276103671,2.56702055,167.1,167.06,0.67641423]
[1641276105174,2.56702055,167.15,167.06,0.67641423]
[1641276106177,2.56702055,167.15,167.06,3.67641423]
[1641276106777,2.56702055,167.15,167.07,0.67641423]
[1641276106978,2.56702055,167.15,167.08,4.22722422]
[1641276107777,2.56702055,167.15,167.09,0.67641423]
[1641276107978,2.56702055,167.15,167.11,3.0]
[1641276108180,2.56702055,167.15,167.1,3.0]
[1641276108478,2.56702055,167.15,167.1,7.22722422]
[1641276108679,2.56702055,167.15,167.11,0.67641423]
[1641276109278,2.56702055,167.16,167.11,4.90363845]
[1641276109684,2.56702055,167.16,167.12,27.66479]
[1641276109881,2.56702055,167.16,167.12,28.34120423]
[1641276110084,2.56702055,167.15,167.12,28.34120423]
[1641276110281,2.56702055,167.15,167.13,0.67641423]
[1641276110682,2.56702055,167.14,167.13,0.67641423]
[1641276112985,2.56702055,167.14,167.12,0.67641423]
[1641276113885,2.56702055,167.14,167.11,0.67641423]
[1641276114085,2.56702055,167.13,167.11,3.67641423]
[1641276114486,2.56702055,167.13,167.11,0.67641423]
[1641276114685,2.56702055,167.13,167.12,0.67641423]
[1641276114886,9.66311361,167.17,167.12,0.67641423]
[1641276115291,9.66311361,167.17,167.11,0.67641423]
[1641276115488,22.44354519,167.2,167.11,3.67641423]
[1641276115687,22.44354519,167.2,167.11,0.67641423]
[1641276115988,3.38041492,167.19,167.11,0.67641423]
[1641276119391,3.38041492,167.19,167.11,3.67641423]
[1641276120093,22.44354519,167.2,167.12,0.67641423]
[1641276120296,22.44354519,167.2,167.14,3.0]
[1641276120496,33.80232078,167.18,167.14,7.794]
[1641276120897,33.80232078,167.18,167.17,3.0]
[1641276121097,43.46543439,167.2,167.16,3.0]
[1641276121298,43.46543439,167.2,167.17,3.67641423]
[1641276121497,43.46543439,167.2,167.17,0.67641423]
[1641276121699,43.46543439,167.2,167.19,27.66479]
[1641276122098,33.80232078,167.23,167.19,27.66479]
[1641276122299,33.80232078,167.23,167.19,0.67641423]
[1641276122698,33.80232078,167.22,167.17,0.67641423]
[1641276123698,33.80232078,167.21,167.19,27.66479]
[1641276124099,33.80232078,167.21,167.2,0.67641423]
[1641276124702,33.80232078,167.23,167.2,0.67641423]
[1641276126500,33.80232078,167.23,167.2,6.67641423]
[1641276127000,33.80232078,167.23,167.21,0.67641423]
[1641276130215,33.80232078,167.23,167.21,8.60941423]
[1641276130514,35.94827164,167.24,167.21,8.60941423]
[1641276130711,35.94827164,167.24,167.22,3.67641423]
[1641276131113,35.94827164,167.24,167.23,0.67641423]
[1641276131516,2.14595086,167.24,167.23,0.67641423]
[1641276132116,1.49545086,167.24,167.23,0.67641423]
[1641276132318,1.49545086,167.24,167.23,3.67641423]
[1641276132517,33.80232078,167.26,167.23,3.67641423]
[1641276132717,33.80232078,167.26,167.24,3.0]
[1641276133119,22.43325303,167.3,167.25,3.0]
[1641276133120,43.46543439,167.3,167.25,3.0]
[1641276133321,43.46543439,167.3,167.25,5.33341423]
[1641276133524,43.46543439,167.3,167.25,8.33341423]
[1641276133719,43.46543439,167.3,167.26,28.34120423]
[1641276134120,33.80232078,167.3,167.27,0.67641423]
[1641276134324,33.80232078,167.3,167.28,3.0]
[1641276134522,33.80232078,167.3,167.27,3.67641423]
[1641276134720,33.80232078,167.3,167.28,3.0]
[1641276135121,33.80232078,167.3,167.27,3.67641423]
[1641276135322,33.80232078,167.3,167.29,3.0]
[1641276135523,9.66311361,167.33,167.29,3.0]
[1641276135722,9.66311361,167.33,167.32,27.66479]
[1641276135723,43.43837772,167.33,167.32,27.66479]
[1641276136125,43.43837772,167.33,167.32,28.34120423]
[1641276136723,9.66311361,167.38,167.32,28.34120423]
[1641276137123,3.37715636,167.37,167.33,0.67641423]
[1641276137725,3.37715636,167.37,167.35,27.66479]
[1641276138324,3.37715636,167.37,167.36,0.67641423]
[1641276138524,3.37715636,167.37,167.36,6.28341423]
[1641276138727,22.3651743,167.38,167.36,6.28341423]
[1641276139125,9.66311361,167.42,167.37,0.67641423]
[1641276139525,3.37673171,167.41,167.37,0.67641423]
[1641276139726,9.98973171,167.41,167.37,0.67641423]
[1641276139926,9.98973171,167.41,167.33,0.67641423]
[1641276140529,3.37673171,167.4,167.33,0.67641423]
[1641276140928,3.37673171,167.4,167.33,3.67641423]
[1641276141128,3.37673171,167.4,167.36,3.0]
[1641276141333,3.37673171,167.41,167.36,3.0]
[1641276141527,3.37673171,167.41,167.34,11.67641423]
[1641276141728,3.37673171,167.41,167.37,28.34120423]
[1641276142331,3.37673171,167.41,167.38,0.67641423]
[1641276146831,12.65996566,167.39,167.38,0.67641423]
[1641276147232,3.37673171,167.41,167.38,0.67641423]
[1641276147430,9.66311361,167.42,167.38,0.67641423]
[1641276147934,12.6595869,167.39,167.38,0.67641423]
[1641276148332,12.6595869,167.39,167.38,3.67641423]
[1641276148535,12.65940759,167.4,167.38,3.67641423]
[1641276148732,12.65940759,167.4,167.39,3.0]
[1641276148932,12.65940759,167.4,167.39,3.67641423]
[1641276149432,12.65940759,167.43,167.39,7.90363845]
[1641276149733,12.65940759,167.43,167.42,27.66479]
[1641276150333,9.66311361,167.46,167.42,27.66479]
[1641276150536,3.37534673,167.43,167.42,28.34120423]
[1641276151135,16.03207815,167.45,167.42,28.34120423]
[1641276151637,12.65673142,167.45,167.43,0.67641423]
[1641276152236,12.65673142,167.45,167.43,3.67641423]
[1641276152436,59.8744,167.52,167.44,3.0]
[1641276152836,3.37495473,167.51,167.45,0.67641423]
[1641276153037,3.37495473,167.51,167.45,7.30441423]
[1641276153438,3.37495473,167.51,167.46,0.67641423]
[1641276155139,3.37495473,167.51,167.48,3.0]
[1641276155342,3.37495473,167.51,167.47,11.0]
[1641276155541,3.37495473,167.51,167.47,8.0]
[1641276155741,3.37495473,167.51,167.49,28.34120423]
[1641276155942,3.37495473,167.51,167.5,33.74103155]
[1641276156140,3.37495473,167.56,167.5,34.41744578]
[1641276156541,3.37495473,167.56,167.5,33.74103155]
[1641276156942,22.49762495,167.57,167.54,12.65245728]
[1641276157941,3.37495473,167.57,167.54,12.65245728]
[1641276158144,3.37495473,167.57,167.5,42.95930021]
[1641276158344,3.37495473,167.57,167.53,33.74103155]
[1641276158545,22.49723604,167.58,167.53,33.74103155]
[1641276158742,3.37495473,167.58,167.53,38.00403155]
[1641276158943,3.37495473,167.56,167.53,38.00403155]
[1641276159346,22.49709729,167.58,167.53,38.00403155]
[1641276160745,22.49709729,167.58,167.57,12.65178225]
[1641276161444,22.49709729,167.58,167.57,19.23478225]
[1641276162445,22.49709729,167.58,167.57,12.65178225]
[1641276163147,25.49709729,167.58,167.57,12.65178225]
[1641276163346,22.49709729,167.58,167.57,12.65178225]
[1641276163548,22.49709729,167.58,167.56,12.65178225]
[1641276164248,22.49709729,167.58,167.57,12.65178225]
[1641276164847,25.49709729,167.58,167.57,12.65178225]
[1641276165748,25.49709729,167.58,167.55,12.65178225]
[1641276166247,22.49709729,167.57,167.55,12.65178225]
[1641276167050,22.49709729,167.57,167.56,12.65178225]
[1641276168048,22.49709729,167.58,167.53,33.74103155]
[1641276168850,3.0,167.56,167.53,33.74103155]
[1641276169451,3.37495473,167.55,167.53,33.74103155]
[1641276171255,22.49574848,167.58,167.53,33.74103155]
[1641276171655,3.37495473,167.58,167.54,0.67462152]
[1641276171853,12.65673142,167.65,167.57,55.32958]
[1641276172055,12.65673142,167.65,167.57,58.32958]
[1641276172261,3.37183441,167.63,167.58,5.96178496]
[1641276172456,12.65673142,167.65,167.58,13.53078496]
[1641276172655,3.37145649,167.64,167.6,3.0]
[1641276173057,3.37145649,167.64,167.61,3.67462152]
[1641276173257,3.37145649,167.64,167.62,3.0]
[1641276173478,3.37145649,167.64,167.62,9.41]
[1641276173656,3.37145649,167.64,167.63,3.67462152]
[1641276173858,12.65673142,167.65,167.63,59.00420152]
[1641276174058,33.74103155,167.69,167.63,56.00420152]
[1641276174259,188.2569,167.73,167.63,59.00420152]
[1641276174461,64.7668,167.73,167.63,58.32958]
[1641276174758,64.7668,167.73,167.64,3.0]
[1641276174959,3.37064008,167.72,167.65,3.0]
[1641276175163,3.37064008,167.72,167.71,33.70502121]
[1641276175359,3.37064008,167.72,167.71,38.49802121]
[1641276175961,3.37064008,167.75,167.71,38.49802121]
[1641276176161,3.37064008,167.75,167.71,41.01495584]
[1641276176964,3.37064008,167.75,167.72,2.51693463]
[1641276177565,3.0,167.73,167.7,42.92328987]
[1641276177764,3.0,167.72,167.7,42.92328987]
[1641276177963,15.06335594,167.75,167.7,42.92328987]
[1641276178164,3.0,167.74,167.7,56.45706382]
[1641276178665,3.0,167.72,167.7,56.45706382]
[1641276178863,3.0,167.72,167.67,33.70502121]
[1641276179064,15.06392244,167.73,167.67,33.70502121]
[1641276179264,3.0,167.72,167.67,33.70502121]
[1641276179466,3.37064008,167.71,167.67,33.70502121]
[1641276179964,3.0,167.71,167.67,33.70502121]
[1641276180167,3.0,167.7,167.67,23.61742121]
[1641276180364,3.37064008,167.7,167.67,23.61742121]
[1641276180764,3.37064008,167.7,167.61,9.21826866]
[1641276180966,3.37064008,167.71,167.61,9.21826866]
[1641276181266,3.37064008,167.71,167.61,16.40726866]
[1641276181466,14.72746602,167.73,167.62,0.77177855]
[1641276181665,14.72746602,167.73,167.62,11.77177855]
[1641276181865,3.37064008,167.74,167.68,27.66479]
[1641276182164,3.37064008,167.74,167.68,32.04979]
[1641276182366,3.37064008,167.75,167.69,0.77177855]
[1641276182768,6.37064008,167.75,167.69,0.77177855]
[1641276182966,3.37064008,167.75,167.69,0.77177855]
[1641276183169,3.37064008,167.74,167.69,0.77177855]
[1641276183568,6.37064008,167.75,167.69,0.77177855]
[1641276183767,3.0,167.74,167.69,0.77177855]
[1641276183966,3.0,167.74,167.69,9.99004721]
[1641276184168,3.37064008,167.73,167.69,9.99004721]
[1641276184666,3.37064008,167.73,167.7,12.64038238]
[1641276185066,3.0,167.72,167.7,12.64038238]
[1641276185268,4.632,167.72,167.7,12.64038238]
[1641276185567,6.37064008,167.71,167.7,12.64038238]
[1641276185768,6.37064008,167.71,167.57,150.90171375]
[1641276185967,3.0,167.7,167.62,8.0]
[1641276186168,6.37064008,167.71,167.62,8.0]
[1641276186367,3.37064008,167.69,167.63,1.44629431]
[1641276186567,3.0,167.71,167.69,2.62935992]
[1641276186768,50.72602823,167.7,167.69,2.62935992]
[1641276187267,53.72602823,167.7,167.69,2.62935992]
[1641276187469,50.72602823,167.7,167.69,2.62935992]
[1641276187872,54.09756651,167.7,167.69,2.62935992]
[1641276188270,3.37153828,167.7,167.69,4.31050079]
[1641276188771,3.37153828,167.71,167.69,4.31050079]
[1641276188971,3.37153828,167.71,167.69,10.28350079]
[1641276189171,50.72602823,167.73,167.7,1.68114087]
[1641276190070,50.72602823,167.75,167.7,1.68114087]
[1641276190471,50.72602823,167.75,167.7,8.03614087]
[1641276190670,3.37023521,167.74,167.7,8.03614087]
[1641276191071,3.37023521,167.74,167.71,1.68114087]
[1641276192173,3.37023521,167.77,167.71,1.68114087]
[1641276192979,3.0,167.76,167.71,1.68114087]
[1641276193179,3.37023521,167.77,167.71,1.68114087]
[1641276193374,3.0,167.76,167.71,1.68114087]
[1641276193576,6.37023521,167.77,167.71,1.68114087]
[1641276193775,3.37023521,167.77,167.7,1.68114087]
[1641276194175,6.37023521,167.77,167.7,1.68114087]
[1641276194675,3.37023521,167.76,167.7,1.68114087]
[1641276195076,6.37023521,167.76,167.7,1.68114087]
[1641276195274,3.37023521,167.76,167.7,1.68114087]
[1641276195675,6.37023521,167.77,167.7,1.68114087]
[1641276195876,3.37023521,167.77,167.7,7.68514087]
[1641276196076,3.37023521,167.76,167.7,7.68514087]
[1641276196478,3.0,167.76,167.71,1.68114087]
[1641276197078,3.37023521,167.75,167.7,1.68114087]
[1641276197277,3.0,167.72,167.7,1.68114087]
[1641276197477,8.392,167.72,167.69,2.62935992]
[1641276197880,3.37023521,167.71,167.69,2.62935992]
[1641276198279,27.66479,167.7,167.69,2.62935992]
[1641276198782,3.37023521,167.7,167.69,5.99650096]
[1641276199183,3.37023521,167.71,167.69,5.99650096]
[1641276199584,3.37023521,167.71,167.7,3.36714104]
[1641276200187,3.37023521,167.74,167.7,3.36714104]
[1641276200385,6.37023521,167.74,167.7,3.36714104]
[1641276200787,3.37023521,167.74,167.7,3.36714104]
[1641276201189,3.37023521,167.73,167.7,3.36714104]
[1641276201589,3.37023521,167.74,167.7,3.36714104]
[1641276201788,6.37023521,167.74,167.7,3.36714104]
[1641276202189,27.66479,167.72,167.7,3.36714104]
[1641276202490,3.37023521,167.71,167.69,2.62935992]
[1641276204289,3.37023521,167.71,167.7,3.36680588]
[1641276204488,3.37023521,167.71,167.7,9.51680588]
[1641276204689,3.37023521,167.74,167.7,9.51680588]
[1641276205089,3.37023521,167.74,167.71,3.36680588]
[1641276206090,3.0,167.73,167.7,3.36680588]
[1641276206488,3.37023521,167.72,167.7,3.36680588]
[1641276207087,6.37023521,167.72,167.7,3.36680588]
[1641276207290,3.0,167.71,167.7,3.36680588]
[1641276207489,3.0,167.71,167.7,5.88e-06]
[1641276207690,3.0,167.71,167.69,2.62935992]
[1641276208289,30.66479,167.7,167.69,2.62935992]
[1641276208692,31.03641499,167.7,167.69,2.62935992]
[1641276208889,31.03641499,167.7,167.69,5.992e-05]
[1641276209090,34.03641499,167.7,167.69,5.992e-05]
[1641276209889,34.03641499,167.7,167.69,4.21457043]
[1641276210594,31.03641499,167.7,167.69,4.21457043]
[1641276211592,31.03641499,167.7,167.69,5.992e-05]
[1641276212991,39.14252299,167.7,167.63,3.03077423]
[1641276213293,31.03641499,167.7,167.63,3.03077423]
[1641276213695,3.37162499,167.69,167.63,3.03077423]
[1641276214094,6.37162499,167.71,167.63,3.03077423]
[1641276214394,27.66479,167.7,167.63,3.03077423]